bitfinex/quotes_ETHUSD_20251127
["timestamp","ask_amount","ask_price","bid_price","bid_amount"]
[1764227074284,1.65592815,3029.4,3029.3,0.001]
[1764227074466,1.24911015,3029.4,3029.3,0.001]
[1764227076191,4.55009384,3029.4,3029.3,0.001]
[1764227078085,5.44094607,3029.4,3029.3,0.001]
[1764227079287,5.84645007,3029.4,3029.3,0.001]
[1764227081302,4.95559784,3029.4,3029.3,0.001]
[1764227083380,5.08784039,3029.4,3029.3,0.001]
[1764227083795,5.8134345,3029.4,3029.3,0.001]
[1764227084099,6.70428673,3029.4,3029.3,0.001]
[1764227086803,5.8134345,3029.4,3029.3,0.001]
[1764227087101,6.5050862,3029.4,3029.3,0.001]
[1764227087601,6.9105902,3029.4,3029.3,0.001]
[1764227098294,6.4288902,3029.4,3029.3,0.001]
[1764227098659,5.5397345,3029.4,3029.3,0.001]
[1764227098924,4.6777305,3029.4,3029.3,0.001]
[1764227099124,6.95804151,3029.4,3029.3,0.001]
[1764227099807,6.29104151,3029.4,3029.3,0.001]
[1764227100010,4.54548795,3029.4,3029.3,0.5824]
[1764227100205,1.24450426,3029.4,3029.3,0.2917]
[1764227100421,1.24450426,3029.4,3029.3,0.5824]
[1764227100625,0.31091015,3029.4,3029.3,0.5824]
[1764227100825,0.51891015,3029.4,3029.3,0.5824]
[1764227101014,0.31091015,3029.4,3029.3,0.5824]
[1764227101334,0.51758973,3029.4,3029.3,0.5824]
[1764227101701,0.51758973,3029.4,3029.3,0.2917]
[1764227102326,0.51758973,3029.4,3029.3,0.5824]
[1764227102532,0.51758973,3029.4,3029.3,0.97096788]
[1764227103036,0.30958973,3029.4,3029.3,0.97096788]
[1764227103237,0.30958973,3029.4,3029.3,0.5824]
[1764227104337,0.30958973,3029.4,3029.3,3.88349266]
[1764227106336,0.30958973,3029.4,3029.3,0.5824]
[1764227107036,0.30958973,3029.4,3029.3,3.88349266]
[1764227108535,0.00067958,3029.4,3029.3,6.45995727]
[1764227108752,0.00067958,3029.4,3029.3,7.74587303]
[1764227109049,0.00067958,3029.4,3029.3,8.87697114]
[1764227109355,0.002,3029.8,3029.6,0.2907]
[1764227109510,0.002,3030.1,3030.0,3.30205872]
[1764227109707,0.002,3030.4,3030.1,1.13109811]
[1764227110015,0.002,3030.9,3030.4,0.72559411]
[1764227110215,0.002,3030.9,3030.4,1.30699411]
[1764227110543,0.002,3030.9,3030.4,11.20667731]
[1764227110723,0.002,3030.9,3030.8,2.86716461]
[1764227111219,0.002,3030.9,3030.8,3.15786461]
[1764227111419,0.002,3030.9,3030.8,3.47365107]
[1764227111633,0.002,3030.9,3030.8,3.60576651]
[1764227113015,0.002,3030.9,3030.8,6.90522539]
[1764227114954,0.002,3030.9,3030.8,4.19664534]
[1764227119540,0.002,3030.9,3030.8,4.32876646]
[1764227123829,0.002,3030.9,3030.8,4.03806646]
[1764227124257,0.002,3030.9,3030.8,3.90594534]
[1764227124463,0.002,3030.9,3030.8,4.19664534]
[1764227124661,0.002,3030.9,3030.8,4.32876646]
[1764227124866,0.002,3030.9,3030.8,0.31578646]
[1764227125080,0.4681,3030.9,3030.7,3.29948191]
[1764227125374,0.1981,3030.9,3030.6,4.02516668]
[1764227125566,0.002,3030.9,3030.6,4.02516668]
[1764227126355,0.002,3030.9,3030.6,7.32484331]
[1764227126555,0.002,3030.9,3030.7,0.73248433]
[1764227127565,0.4661,3030.8,3030.7,0.73248433]
[1764227128072,0.4661,3030.8,3030.7,3.29956775]
[1764227128275,0.002,3030.9,3030.7,3.29956775]
[1764227129449,0.002,3030.9,3030.5,6.60057102]
[1764227130177,0.6527,3030.9,3030.5,3.30078551]
[1764227130348,0.6527,3030.9,3030.5,6.60057102]
[1764227130551,0.4546,3030.8,3030.5,6.60057102]
[1764227130855,0.6527,3030.9,3030.5,7.50083369]
[1764227131178,0.002,3030.9,3030.5,9.9028894]
[1764227131366,0.002,3030.9,3030.8,0.2907]
[1764227131553,0.002,3030.9,3030.8,3.59015888]
[1764227132502,0.002,3030.9,3030.8,3.29945888]
[1764227132989,1.1188,3030.9,3030.6,3.29967663]
[1764227134065,1.1188,3030.9,3030.5,6.60057102]
[1764227134282,1.1188,3030.9,3030.5,7.51404742]
[1764227134660,0.002,3030.9,3030.8,0.2907]
[1764227136293,0.002,3030.9,3030.8,3.29945888]
[1764227137104,0.002,3030.9,3030.8,3.59015888]
[1764227137591,0.002,3030.9,3030.8,3.29945888]
[1764227137592,0.4681,3030.9,3030.8,3.29945888]
[1764227138185,1.4275356,3030.9,3030.5,6.60057102]
[1764227138380,1.1188,3030.9,3030.5,7.51404742]
[1764227138597,0.4661,3030.6,3030.5,0.001]
[1764227138795,0.77486635,3030.6,3030.5,0.001]
[1764227138971,1.22946635,3030.6,3030.5,0.001]
[1764227140506,1.21170324,3030.6,3030.5,0.001]
[1764227140899,1.6836248,3030.6,3030.5,0.001]
[1764227141225,1.21196727,3030.6,3030.5,0.001]
[1764227144199,0.75736727,3030.6,3030.5,0.001]
[1764227145322,1.22426727,3030.6,3030.5,0.001]
[1764227151539,0.75736727,3030.6,3030.5,0.001]
[1764227158241,1.22426727,3030.6,3030.5,0.001]
[1764227159340,0.75736727,3030.6,3030.5,0.001]
[1764227160617,0.30903038,3030.6,3030.5,0.001]
[1764227160817,0.30903038,3030.6,3030.5,0.3094]
[1764227162545,0.31103038,3030.6,3030.5,3.60918551]
[1764227170999,0.31103038,3030.6,3030.5,0.001]
[1764227173441,0.31156713,3030.6,3030.5,0.001]
[1764227175643,0.31156713,3030.6,3030.5,0.3094]
[1764227175840,0.31156713,3030.6,3030.5,1.30873869]
[1764227177377,0.002,3030.6,3030.5,1.30873869]
[1764227177544,0.002,3030.6,3030.5,4.6085242]
[1764227177869,0.002,3030.6,3030.5,4.3001242]
[1764227178084,0.002,3030.6,3030.5,0.001]
[1764227178085,1.48844213,3030.6,3030.5,0.001]
[1764227178742,3.89049784,3030.6,3030.5,0.001]
[1764227179564,7.19017447,3030.6,3030.5,0.001]
[1764227181778,1.48844213,3030.6,3030.5,0.001]
[1764227181951,2.29613297,3030.6,3030.5,0.001]
[1764227182274,5.5958096,3030.6,3030.5,0.001]
[1764227184873,11.9358096,3030.6,3030.5,0.001]
[1764227190186,8.63613297,3030.6,3030.5,0.001]
[1764227190988,11.9358096,3030.6,3030.5,0.001]
[1764227193391,8.13633297,3030.6,3030.5,0.001]
[1764227193593,6.85934213,3030.6,3030.5,0.001]
[1764227193804,7.32864213,3030.6,3030.5,0.001]
[1764227194093,7.82844213,3030.6,3030.5,0.001]
[1764227196167,0.31134213,3030.6,3030.5,0.3094]
[1764227196513,0.51934213,3030.6,3030.5,0.3094]
[1764227197176,0.31134213,3030.6,3030.5,0.3094]
[1764227197388,0.31134213,3030.6,3030.5,0.6178]
[1764227199602,0.31134213,3030.6,3030.5,3.91758551]
[1764227199802,0.31134213,3030.6,3030.5,4.63933663]
[1764227200311,0.31134213,3030.6,3030.5,4.33093663]
[1764227201510,0.31134213,3030.6,3030.5,4.63933663]
[1764227201709,0.002,3030.6,3030.5,6.90669482]
[1764227201917,0.002,3030.6,3030.5,7.21509482]
[1764227202787,0.002,3030.6,3030.5,4.63933663]
[1764227202998,0.002,3030.6,3030.5,1.03115112]
[1764227203294,0.002,3030.6,3030.5,0.001]
[1764227203295,0.489,3030.6,3030.5,0.001]
[1764227203490,0.489,3030.6,3030.5,3.30078551]
[1764227203696,0.002,3030.6,3030.5,0.001]
[1764227205716,0.982,3030.6,3030.5,0.001]
[1764227206402,0.489,3030.6,3030.5,0.001]
[1764227207389,0.002,3030.6,3030.5,0.3094]
[1764227207818,0.002,3030.6,3030.5,3.60918551]
[1764227208001,0.002,3030.6,3030.5,3.99283785]
[1764227209630,0.002,3030.6,3030.5,3.60918551]
[1764227213427,0.002,3030.6,3030.5,3.91758551]
[1764227214633,0.002,3030.6,3030.5,3.60918551]
[1764227218228,0.002,3030.6,3030.5,3.91758551]
[1764227220715,0.002,3030.6,3030.5,4.64317962]
[1764227220938,0.002,3030.6,3030.5,6.29655558]
[1764227224847,0.002,3030.6,3030.5,6.70205958]
[1764227233451,0.002,3030.6,3030.5,5.67975558]
[1764227233641,0.002,3030.6,3030.5,6.29655558]
[1764227234550,0.002,3030.6,3030.5,6.70295958]
[1764227242555,0.002,3030.6,3030.5,9.10456094]
[1764227243733,0.002,3030.6,3030.5,10.29033279]
[1764227245432,0.002,3030.6,3030.5,9.10456094]
[1764227248261,0.002,3030.6,3030.5,10.88442009]
[1764227249230,0.002,3030.6,3030.5,9.10456094]
[1764227250766,0.002,3030.6,3030.5,11.5061623]
[1764227251137,0.002,3030.6,3030.5,9.10456094]
[1764227251759,0.002,3030.6,3030.5,11.5061623]
[1764227251970,0.002,3030.6,3030.5,9.10456094]
[1764227253554,0.002,3030.6,3030.5,8.79616094]
[1764227254072,0.002,3030.6,3030.5,9.10456094]
[1764227263929,0.002,3030.6,3030.5,8.79616094]
[1764227265088,0.4847,3030.6,3030.5,8.48776094]
[1764227265289,0.9355,3030.6,3030.5,8.08225694]
[1764227265478,0.9355,3030.6,3030.5,6.76900602]
[1764227268589,0.9355,3030.6,3030.5,6.14712802]
[1764227268590,0.4847,3030.6,3030.5,6.14712802]
[1764227268784,0.9355,3030.6,3030.5,5.554162]
[1764227270403,0.9355,3030.6,3030.5,4.23527962]
[1764227281973,0.4847,3030.6,3030.5,4.23527962]
[1764227282378,0.002,3030.6,3030.5,5.17077962]
[1764227282783,0.9355,3030.6,3030.5,5.17077962]
[1764227287817,0.9355,3030.6,3030.5,4.02727962]
[1764227287989,0.9355,3030.6,3030.5,3.30168551]
[1764227289119,1.24448271,3030.6,3030.5,0.0019]
[1764227289331,0.9355,3030.6,3030.5,0.0019]
[1764227292300,0.002,3030.6,3030.5,1.232204]
[1764227292498,0.002,3030.6,3030.5,2.75257393]
[1764227292935,0.002,3030.6,3030.5,3.68807393]
[1764227294124,0.002,3030.6,3030.5,6.98785944]
[1764227295939,0.002,3030.6,3030.5,11.16918416]
[1764227296728,0.002,3030.6,3030.5,8.7675828]
[1764227300107,0.002,3030.6,3030.5,6.98785944]
[1764227302645,0.002,3030.6,3030.5,9.56061399]
[1764227307123,0.002,3030.6,3030.5,9.25221399]
[1764227308624,0.002,3030.9,3030.6,0.405504]
[1764227308823,0.002,3030.9,3030.8,4.06455375]
[1764227309017,0.002,3030.9,3030.8,4.79014786]
[1764227309340,0.002,3030.9,3030.8,8.22170211]
[1764227309543,0.002,3030.9,3030.8,8.53010211]
[1764227309742,0.002,3030.9,3030.8,10.42924604]
[1764227309948,0.002,3030.9,3030.8,9.24584684]
[1764227310348,1e-08,3031.0,3030.9,1.43949811]
[1764227310538,1e-08,3031.0,3030.9,2.83067932]
[1764227310848,1e-08,3031.0,3030.9,4.37099849]
[1764227311050,1e-08,3031.0,3030.9,4.50308383]
[1764227312153,1e-08,3031.0,3030.9,7.80243385]
[1764227314659,1e-08,3031.0,3030.9,6.61925264]
[1764227314949,0.002,3031.3,3031.2,0.405504]
[1764227315143,0.002,3031.3,3031.2,5.19416815]
[1764227315345,0.002,3031.3,3031.2,5.50256815]
[1764227315544,0.002,3031.3,3031.2,5.99786815]
[1764227316152,0.002,3031.3,3031.2,9.29689163]
[1764227316358,0.002,3031.3,3031.2,10.88617043]
[1764227317021,0.002,3031.3,3031.2,10.57777043]
[1764227317542,0.002,3031.3,3031.2,10.88617043]
[1764227318052,0.002,3031.3,3031.2,9.70425494]
[1764227318660,0.002,3031.3,3031.2,9.39585494]
[1764227322145,0.002,3031.3,3031.2,11.16920103]
[1764227323346,0.002,3031.3,3031.2,10.86080103]
[1764227323744,0.4828,3031.3,3031.2,10.86080103]
[1764227324056,0.9498,3031.3,3031.2,10.86080103]
[1764227324256,0.4828,3031.3,3031.2,9.08745494]
[1764227325143,0.9498,3031.3,3031.2,9.08745494]
[1764227325349,0.002,3031.3,3031.2,9.39585494]
[1764227325732,0.002,3031.3,3031.2,9.08745494]
[1764227326861,0.4828,3031.3,3031.2,9.08745494]
[1764227327060,0.9498,3031.3,3031.2,9.08745494]
[1764227327256,0.4828,3031.3,3031.2,9.08745494]
[1764227327458,0.002,3031.3,3031.2,9.39585494]
[1764227329456,0.002,3031.3,3031.2,9.08745494]
[1764227329659,0.4828,3031.3,3031.2,9.08745494]
[1764227329962,0.9498,3031.3,3031.2,9.08745494]
[1764227330961,0.9498,3031.3,3031.2,8.68195094]
[1764227331162,0.9498,3031.3,3031.2,7.09267214]
[1764227331492,0.9498,3031.3,3031.2,6.57507803]
[1764227331768,0.9498,3031.3,3031.2,7.30067214]
[1764227332131,0.9498,3031.3,3031.2,4.00232348]
[1764227332335,0.9498,3031.3,3031.2,3.29992348]
[1764227333262,0.9498,3031.3,3031.2,0.0009]
[1764227346652,0.9498,3031.3,3031.2,3.29992348]
[1764227348791,0.9498,3031.3,3031.2,0.0009]
[1764227352791,0.9498,3031.3,3031.1,0.001]
[1764227352958,0.9247,3031.2,3031.1,0.001]
[1764227360271,1.23367718,3031.2,3031.1,0.001]
[1764227369502,0.76077718,3031.2,3031.1,0.001]
[1764227369702,0.30897718,3031.2,3031.1,0.001]
[1764227369996,0.30897718,3031.2,3031.1,0.3094]
[1764227371002,0.30897718,3031.2,3031.1,0.58062831]
[1764227371205,0.002,3031.3,3031.1,0.88902831]
[1764227371406,0.002,3031.3,3031.2,2.71028305]
[1764227371601,0.31139327,3031.3,3031.2,6.00930653]
[1764227372210,1.23609327,3031.3,3031.2,5.70090653]
[1764227372409,1.23609327,3031.3,3031.2,3.29902348]
[1764227374313,1.23609327,3031.3,3031.1,0.001]
[1764227374511,1.23409327,3031.2,3031.1,0.001]
[1764227378811,1.23609327,3031.2,3031.1,0.001]
[1764227379316,1.23609327,3031.2,3031.1,2.40288305]
[1764227379717,1.23603344,3031.2,3031.1,2.40288305]
[1764227380097,0.31133344,3031.2,3031.1,3.6115093]
[1764227380306,0.002,3031.2,3031.1,4.33710341]
[1764227380510,0.002,3031.2,3031.1,4.64550341]
[1764227381199,0.002,3031.2,3031.1,7.94463573]
[1764227381527,0.002,3031.2,3031.1,7.63623573]
[1764227381843,0.002,3031.2,3031.1,8.15263573]
[1764227382200,0.002,3031.2,3031.1,5.13395268]
[1764227384527,0.002,3031.2,3031.1,4.23372643]
[1764227384528,0.9544,3031.2,3031.1,4.23372643]
[1764227384711,0.9544,3031.2,3031.1,3.50813232]
[1764227386831,0.9544,3031.2,3031.1,3.30013232]
[1764227389331,0.002,3031.2,3031.1,3.60853232]
[1764227390639,0.002,3031.2,3031.1,4.64252643]
[1764227390933,0.002,3031.2,3031.1,6.74997051]
[1764227391112,0.002,3031.2,3031.1,7.93240993]
[1764227391316,0.002,3031.2,3031.1,6.74997051]
[1764227395243,0.002,3031.2,3031.1,6.75087051]
[1764227395936,0.002,3031.3,3031.2,0.72559411]
[1764227396115,0.002,3031.3,3031.2,8.99346364]
[1764227396315,0.002,3031.3,3031.2,9.20146364]
[1764227396532,0.002,3031.3,3031.2,9.33354113]
[1764227396931,0.002,3031.3,3031.2,8.1490498]
[1764227397136,0.002,3031.3,3031.2,11.44807328]
[1764227401550,0.002,3031.6,3031.3,0.405504]
[1764227401749,0.002,3031.6,3031.5,6.24326421]
[1764227402228,0.002,3031.6,3031.5,6.6837417]
[1764227403451,0.002,3031.6,3031.5,9.98243871]
[1764227404350,0.002,3031.7,3031.5,11.16630531]
[1764227404546,0.002,3031.7,3031.6,1.230304]
[1764227404745,0.002,3031.7,3031.6,2.84913122]
[1764227404953,0.002,3031.7,3031.6,3.52493122]
[1764227405154,0.002,3031.7,3031.6,3.52583122]
[1764227405658,0.002,3031.7,3031.6,8.73388013]
[1764227412326,0.002,3031.7,3031.6,8.42548013]
[1764227413455,0.4931,3032.5,3032.1,1.13109811]
[1764227413754,0.4931,3032.5,3032.4,2.40188305]
[1764227414146,0.9537,3032.5,3032.4,2.40188305]
[1764227414636,0.9537,3032.5,3032.4,4.08117716]
[1764227415638,0.9537,3032.5,3032.4,7.37889513]
[1764227421644,0.9537,3032.5,3032.4,4.97701208]
[1764227421958,0.9537,3032.5,3032.4,7.37889513]
[1764227422627,0.9537,3032.5,3032.4,3.29771797]
[1764227423075,0.9537,3032.5,3032.1,0.0009]
[1764227423076,1.26208589,3032.5,3032.1,0.0009]
[1764227423243,0.4606,3032.2,3032.1,0.0009]
[1764227423582,0.76898589,3032.2,3032.1,0.0009]
[1764227423875,1.26208589,3032.2,3032.1,0.0009]
[1764227430531,0.9537,3032.2,3032.1,0.0009]
[1764227431563,0.002,3032.5,3032.1,0.4783]
[1764227431858,0.002,3032.5,3032.3,2.57187699]
[1764227432041,0.9537,3032.4,3032.3,2.57187699]
[1764227432445,0.9537,3032.4,3032.3,2.57277699]
[1764227433345,0.9537,3032.4,3032.3,5.87060372]
[1764227434058,0.9537,3032.4,3032.3,5.86970372]
[1764227435455,0.4606,3032.4,3032.3,5.86970372]
[1764227435841,0.002,3032.5,3032.3,7.26386838]
[1764227436361,0.002,3032.5,3032.4,0.4774]
[1764227437553,0.002,3032.5,3032.4,3.77511797]
[1764227437766,0.002,3032.5,3032.4,3.29771797]
[1764227437970,0.4626,3032.5,3032.4,3.29771797]
[1764227438170,0.9557,3032.5,3032.4,3.29771797]
[1764227438979,0.4626,3032.5,3032.4,3.29771797]
[1764227439772,0.4626,3032.5,3032.4,4.3957066]
[1764227444067,0.9359,3032.5,3032.4,4.3957066]
[1764227444858,0.9359,3032.5,3032.4,3.29771797]
[1764227445279,0.9359,3032.5,3032.0,0.209]
[1764227445552,0.4512,3032.1,3032.0,3.29914033]
[1764227446078,0.4512,3032.1,3032.0,0.001]
[1764227446079,0.9245,3032.1,3032.0,0.001]
[1764227449651,0.4512,3032.1,3032.0,0.001]
[1764227450072,0.9245,3032.1,3032.0,0.001]
[1764227450787,0.4512,3032.1,3032.0,0.001]
[1764227451362,0.4512,3032.1,3032.0,2.57287699]
[1764227451562,0.4733,3032.3,3032.0,2.57287699]
[1764227451867,0.30838476,3032.2,3032.1,3.29804425]
[1764227452592,1.23288476,3032.2,3032.1,3.29804425]
[1764227453184,0.4512,3032.2,3032.1,3.29804425]
[1764227453882,0.9245,3032.2,3032.1,3.29804425]
[1764227454758,0.4733,3032.4,3032.1,3.29804425]
[1764227454987,0.4512,3032.2,3032.1,3.29804425]
[1764227457387,0.4733,3032.4,3032.1,7.0826885]
[1764227457684,0.002,3032.5,3032.1,7.0826885]
[1764227457895,0.002,3032.5,3032.3,2.57187699]
[1764227458276,0.4512,3032.4,3032.3,2.57187699]
[1764227458786,1.23302647,3032.4,3032.1,6.5960885]
[1764227459092,0.9245,3032.4,3032.1,6.5960885]
[1764227459675,0.068,3032.2,3032.1,3.29804425]
[1764227460075,0.5413,3032.2,3032.1,3.29804425]
[1764227460277,0.5413,3032.2,3032.0,3.299119]
[1764227460472,0.4474,3032.1,3032.0,3.299119]
[1764227460890,0.9207,3032.1,3032.0,3.299119]
[1764227461823,0.9207,3032.1,3032.0,0.001]
[1764227463207,1.22931814,3032.1,3032.0,0.001]
[1764227466498,0.9207,3032.1,3032.0,0.001]
[1764227466810,0.4474,3032.1,3032.0,0.001]
[1764227467896,0.002,3032.5,3032.0,0.4876]
[1764227467897,0.208,3032.3,3032.0,0.4876]
[1764227468106,0.208,3032.3,3032.1,3.29804425]
[1764227468409,0.30859947,3032.2,3032.1,3.29804425]
[1764227468610,0.75979947,3032.2,3032.1,3.29804425]
[1764227469009,1.21319947,3032.2,3032.0,3.29912272]
[1764227469188,0.0876,3032.1,3032.0,3.29912272]
[1764227469380,0.541,3032.1,3032.0,3.29912272]
[1764227470319,0.541,3032.1,3032.0,0.001]
[1764227470916,0.84960991,3032.1,3032.0,0.001]
[1764227481414,0.39620991,3032.1,3032.0,0.001]
[1764227481833,0.30860991,3032.1,3032.0,0.9611]
[1764227483536,0.30860991,3032.1,3032.0,3.79645303]
[1764227485514,0.30860991,3032.1,3032.0,4.25925303]
[1764227486212,0.30860991,3032.1,3032.0,3.79645303]
[1764227487843,0.76640991,3032.1,3032.0,3.29915303]
[1764227488629,0.30860991,3032.1,3032.0,3.79645303]
[1764227492340,0.4754,3032.3,3032.0,7.09460606]
[1764227492514,0.30884808,3032.2,3032.0,7.09460606]
[1764227492714,0.4754,3032.3,3032.0,7.09460606]
[1764227492937,0.30884796,3032.2,3032.0,7.09460606]
[1764227493145,0.4754,3032.3,3032.0,7.09460606]
[1764227493344,0.30882619,3032.2,3032.0,7.09460606]
[1764227493642,0.4754,3032.3,3032.0,7.09460606]
[1764227493838,0.3088269,3032.2,3032.0,7.09460606]
[1764227494045,0.4754,3032.3,3032.0,7.09460606]
[1764227494241,0.4578,3032.1,3032.0,3.29915303]
[1764227494729,0.9332,3032.1,3032.0,3.29915303]
[1764227494929,0.4578,3032.1,3032.0,3.29915303]
[1764227496051,0.4754,3032.3,3032.0,6.59730606]
[1764227496228,0.30877183,3032.2,3032.0,6.59730606]
[1764227496427,0.002,3032.4,3032.0,6.59730606]
[1764227496428,0.002,3032.4,3032.1,2.40024248]
[1764227496629,0.30878204,3032.3,3032.1,2.89754248]
[1764227496962,0.30878204,3032.2,3032.1,2.89754248]
[1764227497130,0.30878204,3032.2,3032.1,6.19558673]
[1764227499861,0.30878204,3032.2,3032.1,3.79534425]
[1764227506499,0.79578204,3032.2,3032.1,3.29804425]
[1764227507443,1.24748204,3032.2,3032.1,3.29804425]
[1764227507639,0.79578204,3032.2,3032.0,3.29915303]
[1764227507967,0.487,3032.1,3032.0,3.29915303]
[1764227508349,0.9387,3032.1,3032.0,3.29915303]
[1764227509377,0.487,3032.1,3032.0,3.29915303]
[1764227510274,0.487,3032.1,3032.0,0.001]
[1764227512181,0.79593059,3032.1,3032.0,3.29915303]
[1764227520898,0.30893059,3032.1,3032.0,3.29915303]
[1764227521200,0.30893059,3032.1,3032.0,3.79035303]
[1764227528205,0.30893059,3032.1,3032.0,4.25905303]
[1764227528705,0.30893059,3032.1,3032.0,3.79035303]
[1764227529405,0.30908985,3032.1,3032.0,3.79035303]
[1764227530303,0.77018985,3032.1,3032.0,0.001]
[1764227530808,1.23398985,3032.1,3032.0,0.001]
[1764227531705,0.77018985,3032.1,3032.0,0.001]
[1764227536097,0.30908985,3032.1,3032.0,2.85274248]
[1764227537010,0.30908985,3032.1,3032.0,6.15089551]
[1764227540793,0.30908985,3032.1,3032.0,6.64479551]
[1764227541914,0.002,3032.4,3032.0,14.96100141]
[1764227542111,0.002,3032.4,3032.3,2.95254248]
[1764227542487,0.002,3032.4,3032.3,3.44644248]
[1764227542985,0.002,3032.4,3032.3,6.74426921]
[1764227544009,0.002,3032.4,3032.3,6.25036921]
[1764227544218,0.002,3032.4,3032.3,7.71230697]
[1764227544418,0.002,3032.4,3032.3,7.21840697]
[1764227544597,0.002,3032.4,3032.3,6.25036921]
[1764227544798,0.002,3032.4,3032.3,6.74426921]
[1764227544994,0.002,3032.4,3032.3,7.46986332]
[1764227546207,0.002,3032.4,3032.3,7.60192032]
[1764227546532,0.002,3032.4,3032.3,7.77225294]
[1764227546709,0.002,3032.4,3032.3,8.87927241]
[1764227555440,0.002,3032.4,3032.3,9.28477641]
[1764227560039,0.002,3032.4,3032.3,9.28577641]
[1764227562347,0.002,3032.8,3032.4,2.09609811]
[1764227562528,0.002,3032.8,3032.7,4.19777321]
[1764227562707,0.002,3032.8,3032.7,4.944009]
[1764227563038,0.002,3032.8,3032.7,5.904109]
[1764227564145,0.002,3032.8,3032.7,9.20150076]
[1764227564814,0.002,3032.8,3032.7,10.38608549]
[1764227565333,0.002,3032.8,3032.7,9.20150076]
[1764227565640,0.002,3032.8,3032.7,10.38608549]
[1764227566019,0.002,3032.8,3032.7,9.20150076]
[1764227566224,0.002,3032.8,3032.7,10.97403638]
[1764227566529,0.002,3032.8,3032.7,9.20150076]
[1764227567853,0.002,3032.8,3032.7,8.73260076]
[1764227568337,0.002,3032.8,3032.7,9.20150076]
[1764227572958,0.002,3032.8,3032.7,9.20240076]
[1764227573616,0.002,3032.8,3032.7,10.38502799]
[1764227573830,0.002,3032.8,3032.7,9.20240076]
[1764227575043,0.002,3032.8,3032.7,8.73350076]
[1764227575240,0.002,3032.8,3032.7,9.20240076]
[1764227578345,0.002,3032.8,3032.7,8.73350076]
[1764227579050,0.002,3032.8,3032.7,9.20240076]
[1764227581438,0.002,3032.8,3032.7,10.38502799]
[1764227582855,0.002,3032.8,3032.7,9.91612799]
[1764227583023,0.002,3032.8,3032.7,10.38502799]
[1764227585362,0.002,3032.8,3032.7,9.20240076]
[1764227585531,0.002,3032.8,3032.7,10.38637593]
[1764227586152,0.002,3032.8,3032.7,9.91747593]
[1764227586860,0.002,3032.8,3032.7,8.73350076]
[1764227587039,0.002,3032.8,3032.7,9.91771047]
[1764227587241,0.002,3032.8,3032.7,8.73350076]
[1764227588360,0.4927,3032.8,3032.7,8.23740076]
[1764227589165,0.4927,3032.8,3032.7,9.42219238]
[1764227589456,0.4927,3032.8,3032.7,8.23740076]
[1764227590062,0.002,3032.8,3032.7,8.23740076]
[1764227591264,0.002,3032.8,3032.7,10.00993638]
[1764227591870,0.002,3032.8,3032.7,10.46223638]
[1764227595563,0.002,3032.8,3032.7,10.00993638]
[1764227596767,0.002,3032.8,3032.7,10.46223638]
[1764227596969,0.943,3032.8,3032.7,7.43936128]
[1764227597169,0.943,3032.8,3032.7,10.00993638]
[1764227597351,0.943,3032.8,3032.7,10.01818618]
[1764227598036,0.4537,3032.8,3032.7,10.01818618]
[1764227599665,0.4537,3032.8,3032.7,2.27288542]
[1764227599841,0.943,3032.8,3032.7,3.29829176]
[1764227602171,0.943,3032.8,3032.7,0.0009]
[1764227608652,0.943,3032.8,3032.7,2.39996244]
[1764227610884,0.943,3032.8,3032.7,5.6973542]
[1764227611062,0.943,3032.8,3032.7,3.29829176]
[1764227614167,0.943,3032.8,3032.7,5.6973542]
[1764227620192,0.943,3032.8,3032.7,3.29829176]
[1764227622294,0.4537,3032.8,3032.7,2.39996244]
[1764227623975,0.002,3032.8,3032.7,4.57508608]
[1764227624496,0.002,3032.8,3032.7,8.32887784]
[1764227625599,0.4981,3032.8,3032.7,7.66837784]
[1764227625897,0.9545,3032.8,3032.7,7.66837784]
[1764227626098,0.9545,3032.8,3032.7,7.21197784]
[1764227629186,0.9545,3032.8,3032.7,4.8129154]
[1764227629387,0.9545,3032.8,3032.7,3.29829176]
[1764227629581,0.4981,3032.8,3032.7,3.29829176]
[1764227631579,0.002,3032.8,3032.7,3.75079176]
[1764227632597,0.002,3032.8,3032.7,4.24389176]
[1764227633676,0.002,3032.8,3032.7,3.75079176]
[1764227633898,0.002,3032.8,3032.7,5.25357977]
[1764227635578,0.002,3032.8,3032.7,5.74667977]
[1764227636908,0.002,3032.8,3032.7,6.47227388]
[1764227639713,0.002,3032.8,3032.7,5.97917388]
[1764227640708,0.9545,3032.8,3032.7,4.02388587]
[1764227643303,0.9545,3032.8,3032.7,3.29829176]
[1764227645046,0.9545,3032.8,3032.7,0.0009]
[1764227647157,0.9545,3032.8,3032.7,3.29829176]
[1764227648428,1.26320037,3032.8,3032.7,3.29829176]
[1764227649130,1.26320037,3032.8,3032.7,0.0009]
[1764227654059,3.66226281,3032.8,3032.7,0.0009]
[1764227654263,14.61895623,3032.8,3032.7,0.0009]
[1764227654559,14.75105619,3032.8,3032.7,0.0009]
[1764227655164,15.63773479,3032.8,3032.7,0.0009]
[1764227655362,13.02984617,3032.8,3032.7,0.0009]
[1764227655570,13.23784617,3032.8,3032.7,0.0009]
[1764227656237,12.35116757,3032.8,3032.7,0.0009]
[1764227658176,15.6484506,3032.8,3032.5,0.001]
[1764227658375,0.0291,3032.6,3032.5,0.001]
[1764227658548,0.33697419,3032.6,3032.5,0.001]
[1764227658747,0.79657419,3032.6,3032.5,0.001]
[1764227658978,0.92867524,3032.6,3032.5,0.001]
[1764227659975,4.22617573,3032.6,3032.5,0.001]
[1764227660187,4.61199201,3032.6,3032.5,0.001]
[1764227665787,10.95199201,3032.6,3032.5,0.001]
[1764227666081,10.95399201,3032.6,3032.5,0.001]
[1764227671786,7.65649152,3032.6,3032.5,0.001]
[1764227671975,7.86449152,3032.6,3032.5,0.001]